[Event "Titled Tuesday Blitz February 21 Early 2023"]
[White "Bambino Filho, Antonio Carlos"]
[Black "Lauridsen, Jesper Morch"]
[WhiteFideId "2113163"]
[BlackFideId "1401890"]
[WhiteElo "2144"]
[BlackElo "2309"]
[Result "1-0"]
[Round "08"]
[TimeControl "180+2"]
[Date "2023.02.21"]
[WhiteClock "0:00:19"]
[BlackClock "0:00:01"]

1. e4 {[%clk 0:03:00]}  e6 {[%clk 0:03:00]} 2. Nc3 {[%clk 0:02:53]}  d5 {[%clk 0:02:59]} 3. Nf3 {[%clk 0:02:54]}  dxe4 {[%clk 0:02:59]} 4. Nxe4 {[%clk 0:02:54]}  Nd7 {[%clk 0:02:59]} 5. d4 {[%clk 0:02:54]}  Ngf6 {[%clk 0:02:59]} 6. Bd3 {[%clk 0:02:54]}  c5 {[%clk 0:02:58]} 7. O-O {[%clk 0:02:45]}  Nxe4 {[%clk 0:02:58]} 8. Bxe4 {[%clk 0:02:44]}  Nf6 {[%clk 0:02:58]} 9. Qe2 {[%clk 0:02:41]}  Nxe4 {[%clk 0:02:53]} 10. Qxe4 {[%clk 0:02:41]}  cxd4 {[%clk 0:02:52]} 11. Nxd4 {[%clk 0:02:36]}  Bc5 {[%clk 0:02:47]} 12. Be3 {[%clk 0:02:34]}  Bxd4 {[%clk 0:02:10]} 13. Bxd4 {[%clk 0:02:32]}  O-O {[%clk 0:02:09]} 14. Rad1 {[%clk 0:02:32]}  Qa5 {[%clk 0:01:55]} 15. Bc3 {[%clk 0:02:17]}  Qxa2 {[%clk 0:01:46]} 16. Rd3 {[%clk 0:02:17]}  e5 {[%clk 0:01:27]} 17. Qxe5 {[%clk 0:02:06]}  f6 {[%clk 0:01:22]} 18. Qe7 {[%clk 0:02:03]}  Bf5 {[%clk 0:01:10]} 19. Rg3 {[%clk 0:02:01]}  Rf7 {[%clk 0:01:11]} 20. Qc5 {[%clk 0:01:54]}  Bxc2 {[%clk 0:01:02]} 21. Bxf6 {[%clk 0:01:29]}  Rxf6 {[%clk 0:01:01]} 22. Qxc2 {[%clk 0:01:29]}  Raf8 {[%clk 0:00:57]} 23. Ra3 {[%clk 0:01:18]}  Qf7 {[%clk 0:00:52]} 24. Rxa7 {[%clk 0:01:14]}  Rc6 {[%clk 0:00:46]} 25. Qxc6 {[%clk 0:01:10]}  bxc6 {[%clk 0:00:42]} 26. Rxf7 {[%clk 0:01:11]}  Kxf7 {[%clk 0:00:40]} 27. Rc1 {[%clk 0:01:12]}  Rb8 {[%clk 0:00:31]} 28. Rc2 {[%clk 0:01:08]}  Rb6 {[%clk 0:00:28]} 29. Kf1 {[%clk 0:01:06]}  Ke6 {[%clk 0:00:27]} 30. Ke1 {[%clk 0:01:06]}  g6 {[%clk 0:00:18]} 31. Kd1 {[%clk 0:01:06]}  Kd6 {[%clk 0:00:18]} 32. Rd2+ {[%clk 0:01:05]}  Ke6 {[%clk 0:00:17]} 33. Kc2 {[%clk 0:01:06]}  Rb5 {[%clk 0:00:17]} 34. Rd3 {[%clk 0:01:05]}  Rf5 {[%clk 0:00:16]} 35. f3 {[%clk 0:01:04]}  Rh5 {[%clk 0:00:16]} 36. h3 {[%clk 0:01:03]}  Rg5 {[%clk 0:00:15]} 37. g4 {[%clk 0:01:02]}  h5 {[%clk 0:00:14]} 38. Kd2 {[%clk 0:00:58]}  hxg4 {[%clk 0:00:13]} 39. hxg4 {[%clk 0:00:59]}  Rb5 {[%clk 0:00:12]} 40. b3 {[%clk 0:00:59]}  g5 {[%clk 0:00:12]} 41. Ke3 {[%clk 0:00:58]}  Re5+ {[%clk 0:00:11]} 42. Kf2 {[%clk 0:00:58]}  Rb5 {[%clk 0:00:10]} 43. Ke3 {[%clk 0:00:51]}  Re5+ {[%clk 0:00:10]} 44. Kd4 {[%clk 0:00:52]}  Rd5+ {[%clk 0:00:09]} 45. Kc4 {[%clk 0:00:52]}  Re5 {[%clk 0:00:06]} 46. b4 {[%clk 0:00:48]}  Re1 {[%clk 0:00:05]} 47. Kc5 {[%clk 0:00:46]}  Rc1+ {[%clk 0:00:05]} 48. Kb6 {[%clk 0:00:46]}  Ke5 {[%clk 0:00:05]} 49. Rd8 {[%clk 0:00:42]}  Kf4 {[%clk 0:00:04]} 50. Rf8+ {[%clk 0:00:42]}  Ke3 {[%clk 0:00:02]} 51. Rf5 {[%clk 0:00:43]}  Rb1 {[%clk 0:00:02]} 52. Kc5 {[%clk 0:00:42]}  Rc1+ {[%clk 0:00:03]} 53. Kb6 {[%clk 0:00:35]}  Rb1 {[%clk 0:00:03]} 54. Kc5 {[%clk 0:00:21]}  Rc1+ {[%clk 0:00:03]} 55. Kd6 {[%clk 0:00:19]}  Rb1 {[%clk 0:00:03]} 56. Rxg5 {[%clk 0:00:19]}  Rxb4 {[%clk 0:00:03]} 57. Rf5 {[%clk 0:00:19]}  Rc4 {[%clk 0:00:01]} 58. g5 {[%clk 0:00:19]} 1-0


[Site "https://www.chess.com"]

[Event "Titled Tuesday Blitz February 21 Early 2023"]
[White "Delorme, Axel"]
[Black "Fernandez Siles, Luis"]
[WhiteFideId "632023"]
[BlackFideId "2209420"]
[WhiteElo "2483"]
[BlackElo "2218"]
[Result "1/2-1/2"]
[Round "08"]
[TimeControl "180+2"]
[Date "2023.02.21"]
[WhiteClock "0:00:04"]
[BlackClock "0:00:08"]

1. e4 {[%clk 0:03:00]}  c5 {[%clk 0:02:59]} 2. Nf3 {[%clk 0:03:00]}  Nc6 {[%clk 0:02:59]} 3. Bb5 {[%clk 0:03:00]}  g6 {[%clk 0:02:59]} 4. O-O {[%clk 0:03:00]}  Bg7 {[%clk 0:02:59]} 5. c3 {[%clk 0:03:00]}  Nf6 {[%clk 0:02:59]} 6. Re1 {[%clk 0:02:59]}  O-O {[%clk 0:02:57]} 7. d4 {[%clk 0:03:00]}  d5 {[%clk 0:02:57]} 8. e5 {[%clk 0:02:58]}  Ne4 {[%clk 0:02:57]} 9. Be3 {[%clk 0:02:58]}  cxd4 {[%clk 0:02:54]} 10. cxd4 {[%clk 0:02:56]}  Bd7 {[%clk 0:02:53]} 11. Bxc6 {[%clk 0:02:26]}  Bxc6 {[%clk 0:02:52]} 12. Nbd2 {[%clk 0:02:25]}  Rc8 {[%clk 0:02:30]} 13. Qb3 {[%clk 0:02:11]}  Nxd2 {[%clk 0:02:27]} 14. Bxd2 {[%clk 0:02:07]}  Qd7 {[%clk 0:02:16]} 15. h3 {[%clk 0:01:59]}  a6 {[%clk 0:02:09]} 16. Bg5 {[%clk 0:01:45]}  f6 {[%clk 0:01:53]} 17. exf6 {[%clk 0:01:42]}  exf6 {[%clk 0:01:53]} 18. Bf4 {[%clk 0:01:40]}  Rfe8 {[%clk 0:01:51]} 19. Qb4 {[%clk 0:01:17]}  Re4 {[%clk 0:01:45]} 20. Be3 {[%clk 0:00:56]}  Rce8 {[%clk 0:01:38]} 21. Nd2 {[%clk 0:00:57]}  R4e7 {[%clk 0:01:32]} 22. Nb3 {[%clk 0:00:57]}  Qc7 {[%clk 0:01:07]} 23. Qc5 {[%clk 0:00:47]}  Bf8 {[%clk 0:01:06]} 24. Qc3 {[%clk 0:00:37]}  Qd6 {[%clk 0:00:54]} 25. Bd2 {[%clk 0:00:30]}  b6 {[%clk 0:00:51]} 26. Re3 {[%clk 0:00:23]}  Rxe3 {[%clk 0:00:49]} 27. Bxe3 {[%clk 0:00:23]}  a5 {[%clk 0:00:45]} 28. Rc1 {[%clk 0:00:23]}  Bd7 {[%clk 0:00:40]} 29. Qd2 {[%clk 0:00:23]}  Rc8 {[%clk 0:00:32]} 30. Bf4 {[%clk 0:00:21]}  Qb4 {[%clk 0:00:27]} 31. Rxc8 {[%clk 0:00:16]}  Bxc8 {[%clk 0:00:28]} 32. Qxb4 {[%clk 0:00:12]}  Bxb4 {[%clk 0:00:29]} 33. Bd2 {[%clk 0:00:12]}  Bd6 {[%clk 0:00:29]} 34. Kf1 {[%clk 0:00:10]}  Ba6+ {[%clk 0:00:27]} 35. Ke1 {[%clk 0:00:09]}  Bc4 {[%clk 0:00:28]} 36. Nc1 {[%clk 0:00:09]}  a4 {[%clk 0:00:28]} 37. b3 {[%clk 0:00:07]}  axb3 {[%clk 0:00:27]} 38. axb3 {[%clk 0:00:08]}  Ba6 {[%clk 0:00:27]} 39. Be3 {[%clk 0:00:08]}  Kf7 {[%clk 0:00:27]} 40. Kd2 {[%clk 0:00:08]}  Ke6 {[%clk 0:00:27]} 41. Na2 {[%clk 0:00:08]}  f5 {[%clk 0:00:26]} 42. Bg5 {[%clk 0:00:06]}  f4 {[%clk 0:00:25]} 43. Nc3 {[%clk 0:00:05]}  Bb4 {[%clk 0:00:21]} 44. Bd8 {[%clk 0:00:05]}  Bf1 {[%clk 0:00:18]} 45. g3 {[%clk 0:00:01]}  fxg3 {[%clk 0:00:17]} 46. fxg3 {[%clk 0:00:02]}  b5 {[%clk 0:00:17]} 47. h4 {[%clk 0:00:02]}  h5 {[%clk 0:00:14]} 48. Bc7 {[%clk 0:00:02]}  Kf5 {[%clk 0:00:14]} 49. Bf4 {[%clk 0:00:03]}  Kg4 {[%clk 0:00:13]} 50. Kc2 {[%clk 0:00:03]}  Bxc3 {[%clk 0:00:12]} 51. Kxc3 {[%clk 0:00:04]}  Kf5 {[%clk 0:00:13]} 52. Kb4 {[%clk 0:00:04]}  Ke4 {[%clk 0:00:13]} 53. Kc5 {[%clk 0:00:05]}  Bd3 {[%clk 0:00:12]} 54. b4 {[%clk 0:00:05]}  Bc4 {[%clk 0:00:11]} 55. Be5 {[%clk 0:00:04]}  Kf5 {[%clk 0:00:09]} 56. Kd6 {[%clk 0:00:04]}  g5 {[%clk 0:00:09]} 57. hxg5 {[%clk 0:00:04]}  Kxg5 {[%clk 0:00:09]} 58. Bf4+ {[%clk 0:00:04]}  Kg4 {[%clk 0:00:09]} 59. Be5 {[%clk 0:00:05]}  Kf3 {[%clk 0:00:08]} 60. Kc5 {[%clk 0:00:03]}  Kg4 {[%clk 0:00:08]} 61. Kd6 {[%clk 0:00:03]}  Kf3 {[%clk 0:00:08]} 62. Kc5 {[%clk 0:00:03]}  Kg4 {[%clk 0:00:08]} 63. Kd6 {[%clk 0:00:04]} 1/2-1/2


[Site "https://www.chess.com"]

[Event "Titled Tuesday Blitz February 21 Early 2023"]
[White "Kejna, Piotr"]
[Black "Thiel, Thomas"]
[WhiteFideId "21821704"]
[BlackFideId "4615964"]
[WhiteElo "2027"]
[BlackElo "2234"]
[Result "1-0"]
[Round "08"]
[TimeControl "180+2"]
[Date "2023.02.21"]
[WhiteClock "0:00:35"]
[BlackClock "0:01:05"]

1. e4 {[%clk 0:03:00]}  d5 {[%clk 0:02:58]} 2. exd5 {[%clk 0:03:00]}  Nf6 {[%clk 0:02:58]} 3. Bb5+ {[%clk 0:03:00]}  Nbd7 {[%clk 0:02:57]} 4. Nf3 {[%clk 0:02:57]}  Nxd5 {[%clk 0:02:54]} 5. O-O {[%clk 0:02:55]}  c6 {[%clk 0:02:54]} 6. Bc4 {[%clk 0:02:54]}  g6 {[%clk 0:02:54]} 7. Nc3 {[%clk 0:02:51]}  Nc7 {[%clk 0:02:44]} 8. Re1 {[%clk 0:02:21]}  Bg7 {[%clk 0:02:42]} 9. d4 {[%clk 0:02:12]}  O-O {[%clk 0:02:40]} 10. Bg5 {[%clk 0:02:09]}  Nf6 {[%clk 0:02:25]} 11. Qe2 {[%clk 0:02:07]}  Be6 {[%clk 0:02:24]} 12. Rad1 {[%clk 0:02:00]}  Re8 {[%clk 0:02:21]} 13. Ne5 {[%clk 0:01:48]}  Bxc4 {[%clk 0:02:15]} 14. Qxc4 {[%clk 0:01:46]}  Nfd5 {[%clk 0:02:15]} 15. Bh4 {[%clk 0:01:38]}  Nxc3 {[%clk 0:02:04]} 16. Qxf7+ {[%clk 0:01:34]}  Kh8 {[%clk 0:02:00]} 17. bxc3 {[%clk 0:01:35]}  Qd5 {[%clk 0:01:32]} 18. Qf4 {[%clk 0:00:48]}  Ne6 {[%clk 0:01:27]} 19. Qg4 {[%clk 0:00:43]}  Kg8 {[%clk 0:01:09]} 20. c4 {[%clk 0:00:36]}  Qd6 {[%clk 0:01:05]} 21. c5 {[%clk 0:00:35]} 1-0


[Site "https://www.chess.com"]

[Event "Titled Tuesday Blitz February 21 Early 2023"]
[White "Melian, Juan Sebastian"]
[Black "Matveeva, Olga"]
[WhiteFideId "3706575"]
[BlackFideId "24107018"]
[WhiteElo "2293"]
[BlackElo "2128"]
[Result "0-1"]
[Round "08"]
[TimeControl "180+2"]
[Date "2023.02.21"]
[WhiteClock "0:01:55"]
[BlackClock "0:01:03"]

1. d4 {[%clk 0:02:57]}  d5 {[%clk 0:02:59]} 2. Nf3 {[%clk 0:02:58]}  Nf6 {[%clk 0:02:59]} 3. Bg5 {[%clk 0:02:57]}  Ne4 {[%clk 0:02:58]} 4. Bf4 {[%clk 0:02:58]}  c5 {[%clk 0:02:58]} 5. e3 {[%clk 0:02:58]}  Nc6 {[%clk 0:02:53]} 6. Nbd2 {[%clk 0:02:57]}  Nxd2 {[%clk 0:02:44]} 7. Qxd2 {[%clk 0:02:58]}  cxd4 {[%clk 0:02:34]} 8. exd4 {[%clk 0:02:59]}  Bf5 {[%clk 0:02:32]} 9. Bd3 {[%clk 0:02:50]}  Bxd3 {[%clk 0:02:31]} 10. Qxd3 {[%clk 0:02:51]}  e6 {[%clk 0:02:31]} 11. c3 {[%clk 0:02:49]}  Be7 {[%clk 0:02:26]} 12. O-O {[%clk 0:02:43]}  O-O {[%clk 0:02:25]} 13. Rfe1 {[%clk 0:02:34]}  Rc8 {[%clk 0:02:21]} 14. Re3 {[%clk 0:02:31]}  a6 {[%clk 0:02:14]} 15. Ne5 {[%clk 0:02:28]}  Nxe5 {[%clk 0:02:13]} 16. Bxe5 {[%clk 0:02:25]}  Bf6 {[%clk 0:02:11]} 17. Rae1 {[%clk 0:02:16]}  Bxe5 {[%clk 0:02:09]} 18. Rxe5 {[%clk 0:02:17]}  b5 {[%clk 0:02:08]} 19. h4 {[%clk 0:02:17]}  Qxh4 {[%clk 0:01:54]} 20. g3 {[%clk 0:02:15]}  Qf6 {[%clk 0:01:51]} 21. Kg2 {[%clk 0:02:15]}  Rc4 {[%clk 0:01:39]} 22. R1e3 {[%clk 0:02:11]}  Rfc8 {[%clk 0:01:31]} 23. Rf3 {[%clk 0:02:12]}  Qg6 {[%clk 0:01:30]} 24. Qe3 {[%clk 0:02:05]}  b4 {[%clk 0:01:17]} 25. Rg5 {[%clk 0:01:59]}  Qh6 {[%clk 0:01:09]} 26. Qf4 {[%clk 0:01:55]}  f6 {[%clk 0:01:03]} 0-1


[Site "https://www.chess.com"]

[Event "Titled Tuesday Blitz February 21 Early 2023"]
[White "Jimenez Jimenez, Leandro"]
[Black "Sai Han Thiha"]
[WhiteFideId "6415253"]
[BlackFideId "13012290"]
[WhiteElo "2146"]
[BlackElo "2070"]
[Result "1-0"]
[Round "08"]
[TimeControl "180+2"]
[Date "2023.02.21"]
[WhiteClock "0:00:06"]
[BlackClock "0:00:02"]

1. d4 {[%clk 0:03:00]}  Nf6 {[%clk 0:03:00]} 2. c4 {[%clk 0:03:01]}  e6 {[%clk 0:03:00]} 3. Nf3 {[%clk 0:03:01]}  Bb4+ {[%clk 0:03:01]} 4. Bd2 {[%clk 0:03:00]}  Qe7 {[%clk 0:03:01]} 5. Nc3 {[%clk 0:03:00]}  Bxc3 {[%clk 0:03:00]} 6. Bxc3 {[%clk 0:03:00]}  Ne4 {[%clk 0:03:01]} 7. Qc2 {[%clk 0:03:00]}  Nxc3 {[%clk 0:03:02]} 8. Qxc3 {[%clk 0:03:01]}  a5 {[%clk 0:03:02]} 9. a3 {[%clk 0:03:00]}  O-O {[%clk 0:02:55]} 10. g3 {[%clk 0:02:56]}  d6 {[%clk 0:02:51]} 11. Bg2 {[%clk 0:02:55]}  Nd7 {[%clk 0:02:51]} 12. O-O {[%clk 0:02:55]}  e5 {[%clk 0:02:51]} 13. dxe5 {[%clk 0:02:55]}  dxe5 {[%clk 0:02:49]} 14. b4 {[%clk 0:02:55]}  f6 {[%clk 0:02:39]} 15. Ne1 {[%clk 0:02:46]}  axb4 {[%clk 0:02:27]} 16. Qb3 {[%clk 0:02:45]}  bxa3 {[%clk 0:02:20]} 17. Nc2 {[%clk 0:02:42]}  Nc5 {[%clk 0:02:08]} 18. Qb5 {[%clk 0:02:36]}  c6 {[%clk 0:02:06]} 19. Qb4 {[%clk 0:02:29]}  Ra4 {[%clk 0:02:04]} 20. Qb6 {[%clk 0:02:25]}  Bf5 {[%clk 0:01:55]} 21. Nxa3 {[%clk 0:02:06]}  Rfa8 {[%clk 0:01:54]} 22. Qb2 {[%clk 0:02:06]}  Ne6 {[%clk 0:01:45]} 23. e4 {[%clk 0:01:51]}  Rxa3 {[%clk 0:01:32]} 24. exf5 {[%clk 0:01:42]}  Nd4 {[%clk 0:01:32]} 25. Rxa3 {[%clk 0:01:36]}  Rxa3 {[%clk 0:01:33]} 26. Qb6 {[%clk 0:01:29]}  Nxf5 {[%clk 0:01:27]} 27. Rb1 {[%clk 0:01:26]}  Rc3 {[%clk 0:01:15]} 28. Bf1 {[%clk 0:01:00]}  Nd4 {[%clk 0:00:55]} 29. Ra1 {[%clk 0:00:54]}  h5 {[%clk 0:00:39]} 30. Ra7 {[%clk 0:00:40]}  Rb3 {[%clk 0:00:35]} 31. Ra8+ {[%clk 0:00:30]}  Kh7 {[%clk 0:00:33]} 32. Qa7 {[%clk 0:00:29]}  c5 {[%clk 0:00:11]} 33. Qb8 {[%clk 0:00:25]}  e4 {[%clk 0:00:11]} 34. Qh8+ {[%clk 0:00:14]}  Kg6 {[%clk 0:00:11]} 35. Re8 {[%clk 0:00:13]}  Nf3+ {[%clk 0:00:09]} 36. Kg2 {[%clk 0:00:13]}  Ne1+ {[%clk 0:00:09]} 37. Kg1 {[%clk 0:00:13]}  Qd7 {[%clk 0:00:03]} 38. Rd8 {[%clk 0:00:12]}  Nf3+ {[%clk 0:00:02]} 39. Kg2 {[%clk 0:00:11]}  Qf7 {[%clk 0:00:02]} 40. Rf8 {[%clk 0:00:10]}  Ne1+ {[%clk 0:00:02]} 41. Kg1 {[%clk 0:00:10]}  Qc7 {[%clk 0:00:01]} 42. Rc8 {[%clk 0:00:08]}  Qe5 {[%clk 0:00:01]} 43. Re8 {[%clk 0:00:07]}  Nf3+ {[%clk 0:00:02]} 44. Kg2 {[%clk 0:00:07]}  Ne1+ {[%clk 0:00:03]} 45. Kg1 {[%clk 0:00:07]}  Qd4 {[%clk 0:00:03]} 46. Rd8 {[%clk 0:00:06]}  Nf3+ {[%clk 0:00:04]} 47. Kg2 {[%clk 0:00:06]}  Qb2 {[%clk 0:00:03]} 48. Qe8+ {[%clk 0:00:06]}  Kh6 {[%clk 0:00:03]} 49. Qh8+ {[%clk 0:00:06]}  Kg6 {[%clk 0:00:03]} 50. Qe8+ {[%clk 0:00:06]}  Kg5 {[%clk 0:00:03]} 51. Qxe4 {[%clk 0:00:06]}  Ne5 {[%clk 0:00:03]} 52. h3 {[%clk 0:00:05]}  Qc3 {[%clk 0:00:02]} 53. h4+ {[%clk 0:00:05]}  Kh6 {[%clk 0:00:02]} 54. Rh8# {[%clk 0:00:06]} 1-0


[Site "https://www.chess.com"]

[Event "Titled Tuesday Blitz February 21 Early 2023"]
[White "Gamage, Wanshini Vidusama"]
[Black "Eynullayev, Atilla"]
[WhiteFideId "9953752"]
[BlackFideId "13413570"]
[WhiteElo "1089"]
[BlackElo "2281"]
[Result "0-1"]
[Round "08"]
[TimeControl "180+2"]
[Date "2023.02.21"]
[WhiteClock "0:00:06"]
[BlackClock "0:00:07"]

1. e4 {[%clk 0:03:00]}  c5 {[%clk 0:02:59]} 2. Nf3 {[%clk 0:02:58]}  d6 {[%clk 0:02:59]} 3. d4 {[%clk 0:02:58]}  cxd4 {[%clk 0:02:59]} 4. Nxd4 {[%clk 0:02:59]}  Nf6 {[%clk 0:02:58]} 5. Nc3 {[%clk 0:02:59]}  a6 {[%clk 0:02:58]} 6. Rg1 {[%clk 0:02:59]}  h5 {[%clk 0:02:57]} 7. Be3 {[%clk 0:02:56]}  e6 {[%clk 0:02:57]} 8. Qd2 {[%clk 0:02:53]}  Be7 {[%clk 0:02:57]} 9. O-O-O {[%clk 0:02:53]}  b5 {[%clk 0:02:58]} 10. h3 {[%clk 0:02:49]}  Bb7 {[%clk 0:02:58]} 11. f3 {[%clk 0:02:48]}  Nbd7 {[%clk 0:02:57]} 12. g4 {[%clk 0:02:47]}  Nb6 {[%clk 0:02:52]} 13. g5 {[%clk 0:02:43]}  Nfd7 {[%clk 0:02:52]} 14. g6 {[%clk 0:02:42]}  Ne5 {[%clk 0:02:43]} 15. gxf7+ {[%clk 0:02:37]}  Kxf7 {[%clk 0:02:44]} 16. Qg2 {[%clk 0:02:23]}  Bf6 {[%clk 0:02:16]} 17. f4 {[%clk 0:02:20]}  Nec4 {[%clk 0:02:16]} 18. Qg6+ {[%clk 0:02:18]}  Ke7 {[%clk 0:02:16]} 19. e5 {[%clk 0:01:52]}  dxe5 {[%clk 0:02:13]} 20. Nf5+ {[%clk 0:01:41]}  exf5 {[%clk 0:02:13]} 21. Rxd8 {[%clk 0:01:41]}  Rhxd8 {[%clk 0:01:46]} 22. Bc5+ {[%clk 0:01:41]}  Ke6 {[%clk 0:01:46]} 23. Bd3 {[%clk 0:01:22]}  e4 {[%clk 0:01:40]} 24. Bxe4 {[%clk 0:01:23]}  fxe4 {[%clk 0:01:30]} 25. f5+ {[%clk 0:01:23]}  Ke5 {[%clk 0:01:02]} 26. Rf1 {[%clk 0:01:19]}  h4 {[%clk 0:00:43]} 27. Qg2 {[%clk 0:01:14]}  Rd2 {[%clk 0:00:42]} 28. Qg1 {[%clk 0:01:02]}  Rad8 {[%clk 0:00:18]} 29. Bxb6 {[%clk 0:00:58]}  Nxb6 {[%clk 0:00:19]} 30. b3 {[%clk 0:00:38]}  R2d6 {[%clk 0:00:06]} 31. Qh2+ {[%clk 0:00:25]}  Kd4 {[%clk 0:00:07]} 32. Kb2 {[%clk 0:00:22]}  Kc5 {[%clk 0:00:05]} 33. Qf2+ {[%clk 0:00:18]}  Kc6 {[%clk 0:00:05]} 34. a4 {[%clk 0:00:17]}  b4 {[%clk 0:00:06]} 35. a5 {[%clk 0:00:15]}  Bxc3+ {[%clk 0:00:06]} 36. Ka2 {[%clk 0:00:16]}  Nd5 {[%clk 0:00:06]} 37. Qxh4 {[%clk 0:00:11]}  e3 {[%clk 0:00:05]} 38. Qe4 {[%clk 0:00:07]}  Kc7 {[%clk 0:00:06]} 39. Rf3 {[%clk 0:00:06]}  Kb8 {[%clk 0:00:06]} 40. Rxe3 {[%clk 0:00:05]}  Nxe3 {[%clk 0:00:06]} 41. Qxe3 {[%clk 0:00:06]}  Rd1 {[%clk 0:00:07]} 0-1


[Site "https://www.chess.com"]

[Event "Titled Tuesday Blitz February 21 Early 2023"]
[White "Rosenberg, Evan S"]
[Black "SicilianPanzer"]
[WhiteFideId "2019299"]
[WhiteElo "1956"]
[BlackElo "2254"]
[Result "1-0"]
[Round "08"]
[TimeControl "180+2"]
[Date "2023.02.21"]
[WhiteClock "0:01:57"]
[BlackClock "0:01:55"]

1. d4 {[%clk 0:03:00]}  Nf6 {[%clk 0:02:58]} 2. Nf3 {[%clk 0:03:01]}  e6 {[%clk 0:02:57]} 3. g3 {[%clk 0:03:01]}  b5 {[%clk 0:02:56]} 4. Bg2 {[%clk 0:03:01]}  Bb7 {[%clk 0:02:56]} 5. O-O {[%clk 0:03:01]}  Be7 {[%clk 0:02:55]} 6. Bg5 {[%clk 0:02:58]}  O-O {[%clk 0:02:54]} 7. Qd3 {[%clk 0:02:58]}  a6 {[%clk 0:02:53]} 8. Nbd2 {[%clk 0:02:29]}  Nc6 {[%clk 0:02:21]} 9. c3 {[%clk 0:02:23]}  d5 {[%clk 0:02:14]} 10. Nb3 {[%clk 0:02:21]}  h6 {[%clk 0:02:12]} 11. Bxf6 {[%clk 0:02:21]}  Bxf6 {[%clk 0:02:11]} 12. Nc5 {[%clk 0:02:21]}  Bc8 {[%clk 0:02:11]} 13. e4 {[%clk 0:02:20]}  dxe4 {[%clk 0:02:01]} 14. Qxe4 {[%clk 0:02:15]}  Qd6 {[%clk 0:01:55]} 15. Ne5 {[%clk 0:01:57]} 1-0


[Site "https://www.chess.com"]

[Event "Titled Tuesday Blitz February 21 Early 2023"]
[White "Petrova, Irina"]
[Black "Simonovic, Miroslav"]
[WhiteFideId "14124122"]
[BlackFideId "919152"]
[WhiteElo "2108"]
[BlackElo "2082"]
[Result "1-0"]
[Round "08"]
[TimeControl "180+2"]
[Date "2023.02.21"]
[WhiteClock "0:00:05"]
[BlackClock "0:00:04"]

1. e4 {[%clk 0:03:00]}  c5 {[%clk 0:03:00]} 2. Nf3 {[%clk 0:03:00]}  Nc6 {[%clk 0:03:00]} 3. Bb5 {[%clk 0:03:00]}  g6 {[%clk 0:03:00]} 4. Bxc6 {[%clk 0:03:00]}  dxc6 {[%clk 0:03:01]} 5. d3 {[%clk 0:03:01]}  Bg7 {[%clk 0:03:01]} 6. Nc3 {[%clk 0:03:02]}  e5 {[%clk 0:03:00]} 7. Be3 {[%clk 0:03:02]}  b6 {[%clk 0:03:00]} 8. Qd2 {[%clk 0:02:59]}  h6 {[%clk 0:02:59]} 9. h3 {[%clk 0:02:59]}  Ne7 {[%clk 0:03:00]} 10. O-O {[%clk 0:02:58]}  Be6 {[%clk 0:03:00]} 11. a3 {[%clk 0:02:57]}  f5 {[%clk 0:02:53]} 12. exf5 {[%clk 0:02:50]}  gxf5 {[%clk 0:02:54]} 13. Qe2 {[%clk 0:02:50]}  O-O {[%clk 0:02:51]} 14. Bd2 {[%clk 0:02:39]}  Ng6 {[%clk 0:02:46]} 15. Rfe1 {[%clk 0:02:30]}  Kh7 {[%clk 0:02:38]} 16. b4 {[%clk 0:02:26]}  cxb4 {[%clk 0:02:31]} 17. axb4 {[%clk 0:02:27]}  Bd5 {[%clk 0:02:24]} 18. Ra3 {[%clk 0:02:19]}  a5 {[%clk 0:02:03]} 19. bxa5 {[%clk 0:02:17]}  Rxa5 {[%clk 0:02:03]} 20. Rxa5 {[%clk 0:02:17]}  bxa5 {[%clk 0:02:04]} 21. Ra1 {[%clk 0:02:09]}  e4 {[%clk 0:01:55]} 22. Ne1 {[%clk 0:02:01]}  Ne5 {[%clk 0:01:37]} 23. Nxd5 {[%clk 0:01:57]}  exd3 {[%clk 0:01:29]} 24. cxd3 {[%clk 0:01:55]}  Nxd3 {[%clk 0:01:01]} 25. Nxd3 {[%clk 0:01:04]}  Bxa1 {[%clk 0:00:59]} 26. N5f4 {[%clk 0:01:04]}  a4 {[%clk 0:00:30]} 27. Qh5 {[%clk 0:00:54]}  Qg5 {[%clk 0:00:25]} 28. Qd1 {[%clk 0:00:49]}  Qf6 {[%clk 0:00:10]} 29. Qxa4 {[%clk 0:00:45]}  Rg8 {[%clk 0:00:10]} 30. Nh5 {[%clk 0:00:20]}  Qd4 {[%clk 0:00:04]} 31. Qxc6 {[%clk 0:00:09]}  Rg6 {[%clk 0:00:04]} 32. Qc7+ {[%clk 0:00:07]}  Kg8 {[%clk 0:00:04]} 33. Qc8+ {[%clk 0:00:05]}  Kh7 {[%clk 0:00:04]} 34. Qc7+ {[%clk 0:00:05]}  Kg8 {[%clk 0:00:04]} 35. Nhf4 {[%clk 0:00:05]} 1-0


[Site "https://www.chess.com"]

[Event "Titled Tuesday Blitz February 21 Early 2023"]
[White "Todev, Simeon"]
[Black "Michalski, Olaf"]
[WhiteFideId "2925133"]
[BlackFideId "1106740"]
[WhiteElo "2033"]
[BlackElo "2273"]
[Result "1-0"]
[Round "08"]
[TimeControl "180+2"]
[Date "2023.02.21"]
[WhiteClock "0:00:49"]
[BlackClock "0:00:06"]

1. e4 {[%clk 0:03:00]}  c5 {[%clk 0:02:57]} 2. Nf3 {[%clk 0:03:01]}  a6 {[%clk 0:02:57]} 3. d4 {[%clk 0:03:01]}  cxd4 {[%clk 0:02:57]} 4. Nxd4 {[%clk 0:03:02]}  Nf6 {[%clk 0:02:56]} 5. Nc3 {[%clk 0:03:00]}  e5 {[%clk 0:02:54]} 6. Nf3 {[%clk 0:02:53]}  Bb4 {[%clk 0:02:52]} 7. Bg5 {[%clk 0:02:52]}  Qc7 {[%clk 0:02:27]} 8. Bxf6 {[%clk 0:02:47]}  Bxc3+ {[%clk 0:02:14]} 9. bxc3 {[%clk 0:02:44]}  Qxc3+ {[%clk 0:02:14]} 10. Nd2 {[%clk 0:02:42]}  gxf6 {[%clk 0:02:15]} 11. Bd3 {[%clk 0:02:43]}  d6 {[%clk 0:01:58]} 12. O-O {[%clk 0:02:39]}  Rg8 {[%clk 0:01:50]} 13. Nc4 {[%clk 0:02:37]}  Qd4 {[%clk 0:01:25]} 14. Be2 {[%clk 0:02:32]}  Ke7 {[%clk 0:01:06]} 15. c3 {[%clk 0:02:18]}  Qc5 {[%clk 0:01:01]} 16. Rb1 {[%clk 0:02:08]}  b5 {[%clk 0:00:56]} 17. Ne3 {[%clk 0:02:05]}  Be6 {[%clk 0:00:56]} 18. a4 {[%clk 0:02:02]}  bxa4 {[%clk 0:00:48]} 19. Bg4 {[%clk 0:02:02]}  Nd7 {[%clk 0:00:37]} 20. Bxe6 {[%clk 0:01:57]}  fxe6 {[%clk 0:00:37]} 21. Qh5 {[%clk 0:01:50]}  Rg7 {[%clk 0:00:34]} 22. Qh6 {[%clk 0:01:50]}  Rag8 {[%clk 0:00:29]} 23. Rb7 {[%clk 0:01:41]}  Qc6 {[%clk 0:00:23]} 24. Rfb1 {[%clk 0:01:30]}  Qxe4 {[%clk 0:00:22]} 25. Qh3 {[%clk 0:01:22]}  Qc6 {[%clk 0:00:12]} 26. R7b4 {[%clk 0:01:11]}  d5 {[%clk 0:00:12]} 27. Rh4 {[%clk 0:01:01]}  Kd6 {[%clk 0:00:09]} 28. Rxh7 {[%clk 0:00:56]}  a3 {[%clk 0:00:08]} 29. Rxg7 {[%clk 0:00:54]}  Rxg7 {[%clk 0:00:08]} 30. Ra1 {[%clk 0:00:51]}  Qxc3 {[%clk 0:00:07]} 31. Nf5+ {[%clk 0:00:49]}  exf5 {[%clk 0:00:07]} 32. Qxc3 {[%clk 0:00:50]}  Nc5 {[%clk 0:00:06]} 33. Rxa3 {[%clk 0:00:49]} 1-0


[Site "https://www.chess.com"]